Cogmind - Beta 10.2 @@@ ROGUE MODE // 2021.08.14 @ 22:09:57 Player: Sam Result: Destroyed by Y-45 Defender with Heavy Assault Rifle Performance ------------- Evolutions (1) 500 Regions Visited (3) 600 Robots Destroyed (25) 125 Value Destroyed (438) 438 Prototype IDs (2) 40 Alien Tech Used (0) 0 Bonus (14) 14 TOTAL SCORE: 1717 Bonus ------- Follower Combat Kills 14 Cogmind --------- Core Integrity 0/400 Matter 158/300 Energy 100/100 System Corruption 1% Temperature Cool (9) Movement Core (250) Ox4 Location -9/Materials Parts ------- > --- POWER (1) -------- (None) > --- PROPULSION (2) --- (None) > --- UTILITY (4) ------ Heat Sink Medium Storage Unit Signal Interpreter > --- WEAPON (2) ------- Rocket Launcher > --- INVENTORY (8) ---- Improved Aluminum Leg Mini Grenade Launcher Datajack Peak State ------------ > --- POWER ------------ Light Nuclear Core > --- PROPULSION ------- Improved Aluminum Leg Combat Airjet > --- UTILITY ---------- Signal Interpreter > --- WEAPON ----------- Small Laser Rocket Launcher > --- INVENTORY -------- Ion Engine Mini Grenade Launcher Datajack Maul [Rating: 14] Favorites ----------- Power Ion Engine Engine Ion Engine Power Core Light Nuclear Core Propulsion Aluminum Leg Treads Light Treads Leg Aluminum Leg Hover Unit Combat Airjet Flight Unit Flight Unit Utility Signal Interpreter Device Sensor Array Storage Medium Storage Unit Processor Signal Interpreter Protection Light Armor Plating Weapon Small Laser Energy Gun Small Laser Ballistic Gun Light Assault Rifle Launcher Rocket Launcher Impact Weapon Maul Build | -11 -10 -10 -9 ------- Run | Scr Mat Min Mat Slots Evolved 2 | . . . 2 Power . | . . . . Propulsion . | . . . . Utility 2 | . . . 2 Weapon . | . . . . Parts Attached 40 | 5 11 8 16 Power 8 | 1 1 2 4 Engine 6 | 1 1 1 3 Core 2 | . . 1 1 Reactor . | . . . . Propulsion 8 | 2 1 2 3 Treads 1 | . . . 1 Leg 5 | 2 1 . 2 Wheel . | . . . . Hover 1 | . . 1 . Flight 1 | . . 1 . Utility 5 | . 2 . 3 Device 2 | . 1 . 1 Storage 1 | . . . 1 Processor 1 | . 1 . . Hackware . | . . . . Protection 1 | . . . 1 Artifact . | . . . . Weapon 19 | 2 7 4 6 Energy Gun 6 | 1 4 1 . Energy Cannon . | . . . . Ballistic Gun 7 | 1 2 1 3 Ballistic Cannon . | . . . . Launcher 5 | . 1 2 2 Special Weapon . | . . . . Impact Weapon 1 | . . . 1 Slashing Weapon . | . . . . Piercing Weapon . | . . . . Special Melee Weapon . | . . . . Unidentified Prototypes . | . . . . Parts Lost 22 | . 3 7 12 Power 5 | . . 1 4 Propulsion 5 | . . 2 3 Utility 2 | . . 1 1 Weapon 10 | . 3 3 4 Highest Loss Streak 7 | . 2 7 6 Average Slot Usage (%) 71 | . 88 53 73 Engine 7 | . 14 3 3 Core 5 | . . 9 6 Leg 13 | . 28 . 9 Hover 4 | . . 9 1 Device 4 | . 8 . 4 Storage 1 | . . . 9 Processor 11 | . 8 14 11 Energy Gun 13 | . 20 9 4 Ballistic Gun 4 | . 7 . 7 Launcher 2 | . . 4 4 Naked Turns . | . . . . Heaviest Build 24 | 8 10 10 24 Greatest Support 26 | 20 20 22 26 Greatest Overweight (x) 7 | 2 . 1 7 Average Overweight (x) . | . . . . Largest Inventory Capacity 8 | 4 4 4 8 Average Capacity 4 | 4 4 4 7 Most Carried 6 | 1 4 4 6 Average Carried 3 | . 3 2 4 Final Capacity 8 | 4 4 4 8 Final Carried 4 | 1 4 3 3 Class Distribution -------------------- 55% | Scavenger-Mutant 44% | Mutant Dominant Class ---------------- Mutant | -10/Materials Scavenger-Mutant | -10/Mines Scavenger-Mutant | -9/Materials Resources | -11 -10 -10 -9 ----------- Run | Scr Mat Min Mat Matter Collected 538 | 230 136 72 100 Remotely . | . . . . Salvage Created 493 | . 290 51 152 Parts 50 | . 22 3 25 Haulers Intercepted . | . . . . Recyclers Shooed . | . . . . Parts Field Recycled . | . . . . Retrieved Matter . | . . . . Parts Self-Destructed . | . . . . Prevented . | . . . . Kills | -11 -10 -10 -9 ------- Run | Scr Mat Min Mat Combat Hostiles Destroyed 26 | . 10 7 9 Guns 12 | . 8 1 3 AOE 14 | . 2 6 6 Classes Destroyed 6 | . 3 1 2 Worker 2 | . . . 2 Tunneler 1 | . . . 1 Watcher 2 | . 2 . . Swarmer 14 | . 6 1 7 Grunt 6 | . 4 . 2 Assembled 6 | . . 6 . Best Kill Streak 6 | . 5 6 6 Combat Bots Only 6 | . 5 6 5 Max Kills in Single Turn 3 | . 2 3 3 Gunslinging 1 | . 1 . . Exploded 3 | . 2 3 2 Melee . | . . . . Uniques/NPCs Destroyed . | . . . . Combat | -11 -10 -10 -9 -------- Run | Scr Mat Min Mat Damage Taken 2017 | . 499 378 1140 Core 632 | . 82 138 412 Absorbed by Shields . | . . . . Core Remaining (%) 56 | 100 . 12 . Volleys Fired 70 | . 35 7 28 Largest 2 | . 2 2 2 Hottest 80 | . 80 70 40 Shots Fired 104 | . 61 9 34 Gun 90 | . 60 6 24 Cannon . | . . . . Launcher 14 | . 1 3 10 Special . | . . . . Kinetic 40 | . 17 1 22 Thermal 21 | . 14 5 2 Explosive 14 | . 1 3 10 Electromagnetic 29 | . 29 . . Robot Hit Streak 6 | . 6 1 5 Robot Miss Streak 7 | . 7 4 2 Penetration Max . | . . . . Secondary Targets 2 | . 1 . 1 Max Gunslinging Chain 1 | . 1 . 1 Shots Hit Robots 56 | . 27 3 26 Core Hits 53 | . 17 19 17 Critical Hits . | . . . . Critical Kills . | . . . . Critical Parts Destroyed . | . . . . Melee Attacks 8 | . . . 8 Impact 8 | . . . 8 Slashing . | . . . . Piercing . | . . . . Sneak Attacks . | . . . . Combat Hostiles . | . . . . Follow-up Attacks . | . . . . Damage Inflicted 1334 | . 363 335 636 Guns 389 | . 244 33 112 Cannons . | . . . . Explosions 829 | . 119 302 408 Melee 116 | . . . 116 Ramming . | . . . . Kinetic 129 | . 29 . 100 Thermal 99 | . 54 33 12 Explosive 829 | . 119 302 408 Electromagnetic 161 | . 161 . . Impact 116 | . . . 116 Slashing . | . . . . Piercing . | . . . . Highest Corruption 1 | . . . 1 Average Corruption 1 | . . . 1 Corruption Purged . | . . . . Overload Shots . | . . . . Overflow Damage 51 | . 15 26 10 Projectiles . | . . . . Explosions 51 | . 15 26 10 Melee . | . . . . Knockbacks . | . . . . Impact . | . . . . Kinetic . | . . . . Secondary . | . . . . Self-Inflicted Damage 201 | . . 75 126 Shots 5 | . . 2 3 Rammed . | . . . . Targets Rammed . | . . . . Kicked . | . . . . Crushed . | . . . . Highest Temperature 124 | . 124 12 . Average Temperature 49 | . 54 7 . Received Heat Transfer 282 | . 84 . 198 Siege Activations . | . . . . Robots Corrupted . | . . . . Combat Hostiles . | . . . . Parts Fried 2 | . 2 . . Impact Corruptions . | . . . . Robots Melted . | . . . . Combat Hostiles . | . . . . Parts Melted . | . . . . Heat Transferred 225 | . 125 75 25 Parts Sabotaged . | . . . . Parts Stolen . | . . . . Parts Stripped . | . . . . Power Chain Reactions . | . . . . Missiles Intercepted . | . . . . Alert | -11 -10 -10 -9 ------- Run | Scr Mat Min Mat Peak Influence 273 | . 273 112 221 Initial 43 | . . 12 43 Average 46 | . 61 20 75 Maximum Alert Level 1 | . 1 . 1 Low Security (%) 95 | 100 90 100 99 Level 1 4 | . 9 . . Level 2 . | . . . . Level 3 . | . . . . Level 4 . | . . . . Level 5 . | . . . . High Security . | . . . . Max Security . | . . . . Squads Dispatched 2 | . 1 . 1 Investigation . | . . . . Extermination . | . . . . Reinforcement 2 | . 1 . 1 Assault . | . . . . Garrison . | . . . . Intercept . | . . . . Construction Impeded . | . . . . Haulers Reinforced . | . . . . Stealth | -11 -10 -10 -9 --------- Run | Scr Mat Min Mat Distress Signals 2 | . 1 . 1 Communications Jammed . | . . . . Distress Signals . | . . . . Times Spotted 48 | . 18 15 15 Peak Tracking Total 11 | . 6 11 7 Tactical Retreats 4 | . . 3 1 Traps | -11 -10 -10 -9 ------- Run | Scr Mat Min Mat Traps Triggered 1 | . . . 1 Indirectly . | . . . . Trap Hack Attempts . | . . . . Triggered . | . . . . Disarmed . | . . . . Reprogrammed 3 | . 3 . . Reused 1 | . 1 . . Traps Extracted . | . . . . Installed . | . . . . Triggered 1 | . 1 . . Machines | -11 -10 -10 -9 ---------- Run | Scr Mat Min Mat Machines Disabled 4 | . 2 . 2 Max in Single Turn 1 | . 1 . 1 Machines Sabotaged . | . . . . Garrisons Compromised . | . . . . Overloaded Fab Kills . | . . . . Fab Network Shutdowns . | . . . . Hacking | -11 -10 -10 -9 --------- Run | Scr Mat Min Mat Machines Accessed 9 | . 7 1 1 Terminals 9 | . 7 1 1 Fabricators . | . . . . Repair Stations . | . . . . Recycling Units . | . . . . Scanalyzers . | . . . . Garrison Access . | . . . . Total Hacks 42 | . 36 2 4 Successful 20 | . 16 1 3 Failed 21 | . 19 1 1 Catastrophic . | . . . . Database Lockouts 1 | . 1 . . Manual 35 | . 29 2 4 Terminals 42 | . 36 2 4 Fabricators . | . . . . Repair Stations . | . . . . Recycling Units . | . . . . Scanalyzers . | . . . . Garrison Access . | . . . . Terminal Hacks 10 | . 9 1 . Part Schematic 2 | . 2 . . Robot Analysis 1 | . 1 . . Prototype ID Bank 1 | . 1 . . Branch Access Points 2 | . 1 1 . Terminal Index 1 | . 1 . . Unreport Threat 1 | . 1 . . Locate Traps 1 | . 1 . . Reprogram Traps 1 | . 1 . . Fabricator Hacks . | . . . . Repair Station Hacks . | . . . . Recycling Unit Hacks . | . . . . Scanalyzer . | . . . . Garrison Access Hacks . | . . . . Unauthorized Hacks 10 | . 7 . 3 Terminals 10 | . 7 . 3 Track 3 | . 2 . 1 Assimilate 2 | . 1 . 1 Botnet 5 | . 4 . 1 Fabricators . | . . . . Repair Stations . | . . . . Recycling Units . | . . . . Scanalyzers . | . . . . Garrison Access . | . . . . Data Cores Recovered . | . . . . Used . | . . . . Hacking Detections 9 | . 7 1 1 Full Trace Events . | . . . . Feedback Events . | . . . . Feedback Blocked . | . . . . Robot Schematics Acquired . | . . . . Robots Built . | . . . . Matter . | . . . . Time . | . . . . Total Robot Build Rating . | . . . . Part Schematics Acquired 2 | . 2 . . Parts Built . | . . . . Matter . | . . . . Time . | . . . . Total Part Build Rating . | . . . . Parts Repaired . | . . . . Time . | . . . . Parts Recycled . | . . . . Recycled Matter . | . . . . Retrieved Matter . | . . . . Retrieved Components . | . . . . Parts Scanalyzed . | . . . . Part Schematics Acquired . | . . . . Parts Damaged . | . . . . Bothacking | -11 -10 -10 -9 ------------ Run | Scr Mat Min Mat Used RIF Installer . | . . . . Robots Hacked . | . . . . Non-combat . | . . . . Combat . | . . . . Robot Hacks Applied . | . . . . Relay Couplers Released . | . . . . Robots Rewired . | . . . . Allies Hacked . | . . . . Hacks Repelled . | . . . . Allies | -11 -10 -10 -9 -------- Run | Scr Mat Min Mat Total Allies 3 | . . 3 . Largest Group 3 | . . 3 1 Highest-Rated Group 40 | . . 40 16 Highest-Rated Ally 16 | . . 16 16 Total Orders . | . . . . Ally Attacks 10 | . . 4 6 Total Damage 162 | . . 67 95 Kills 4 | . . 4 . Allies Corrupted . | . . . . Allies Melted . | . . . . Intel | -11 -10 -10 -9 ------- Run | Scr Mat Min Mat Robot Analysis Total 1 | . 1 . . Derelict Logs Recovered 2 | . . 2 . Drone Launches . | . . . . Drone Recoveries . | . . . . Exploration | -11 -10 -10 -9 ------------- Run | Scr Mat Min Mat Turns Passed 1669 | 46 661 660 302 Spaces Moved 1293 | 33 432 691 137 Core 196 | 10 . 180 6 Treads 39 | . . . 39 Legs 529 | 23 432 11 63 Wheels . | . . . . Hover 529 | . . 500 29 Flight . | . . . . Fastest Speed 50 | 50 120 50 80 Average Speed 99 | 116 120 79 133 Slowest Speed 400 | 150 120 120 400 Overloaded Moves . | . . . . Propulsion Burnouts . | . . . . Robots Hopped . | . . . . Cave-ins Triggered . | . . . . Exploration Rate (%) 49 | 3 82 98 15 Regions Visited 3 Branch Regions 1 Pre-discovered Areas . | . . . . Known Exits Taken 2 | . 1 1 . Unknown Exits Taken 1 | 1 . . . Scrap Searched 2 | . . 2 . Spaces Dug . | . . . . Terrain Destroyed 112 | . . 27 85 Melee . | . . . . Projectile . | . . . . AOE 112 | . . 27 85 Terrain Rammed . | . . . . Walls Destroyed . | . . . . Machines Disabled . | . . . . Actions | -11 -10 -10 -9 --------- Run | Scr Mat Min Mat Total 1545 | 38 513 788 206 Wait 123 | . 32 79 12 Move 1290 | 32 431 690 137 Hop . | . . . . Pick Up 10 | 1 3 2 4 Fast Attach 19 | 5 3 4 7 Attach 9 | . 2 2 5 Detach . | . . . . Swap 12 | . 6 2 4 Drop 4 | . 1 2 1 Fire 70 | . 35 7 28 Melee 8 | . . . 8 Ram . | . . . . Kick . | . . . . Crush . | . . . . Escape Stasis . | . . . . Rewire . | . . . . Trap . | . . . . Miscellaneous . | . . . . Route ------- -11/Scrapyard -10/Materials (discovered 4 exits: *Mat x2 / *Min x2) -10/Mines (discovered 2 exits: *Mat x2) -9/Materials History --------- Turn | Location | Event 15 | -11/Scrapyard | Discovered new exit (range 15) 47 | -11/Scrapyard | Entered Materials 219 | -10/Materials | Discovered new exit (range 16) 282 | -10/Materials | Discovered new exit (range 12) 289 | -10/Materials | Identified exit to Mines 330 | -10/Materials | Build established: Mutant 496 | -10/Materials | Central database locked down 645 | -10/Materials | Discovered new exit (range 6) 649 | -10/Materials | Identified exit to Materials 708 | -10/Materials | Entered Mines 712 | -10/Mines | Assembled infested the area 731 | -10/Mines | Core integrity fell below 50% 765 | -10/Mines | Lost 7 parts (1p2n1u3w) 795 | -10/Mines | Assisted by bots powering up and referring to "LRC-V3" 852 | -10/Mines | Core integrity fell below 20% 1008 | -10/Mines | Discovered exit to Materials (range 9) 1021 | -10/Mines | Discovered exit to Materials (range 3) 1176 | -10/Mines | Received a Rocket Launcher from a helpful Derelict 1183 | -10/Mines | Learned Materials emergency access door positions 1198 | -10/Mines | Build established: Scavenger-Mutant 1368 | -10/Mines | Entered Materials 1368 | -9/Materials | Accompanied by 1 ally 1368 | -9/Materials | Evolved 2 slots: Utility x2 1561 | -9/Materials | Lost 6 parts (2p2n2w) 1651 | -9/Materials | Core integrity fell below 50% 1668 | -9/Materials | Core integrity fell below 20% 1670 | -9/Materials | Destroyed by Y-45 Defender with Heavy Assault Rifle Last Messages --------------- U-05 Engineer lays Concrete. K-01 Serf collects debris. Lgt. Nuclear Core destroyed. G-34 Mercenary destroyed. Switching to secondary target: Y-45 Defender. Lgt. Assault Rifle destroyed. S-10 Pest destroyed. Imp. Ion Engine destroyed. Acquired 11 matter. Lgt. Treads destroyed. Lgt. Assault Rifle destroyed. Lgt. Armor Plating destroyed. S-10 Pest destroyed. Atomic Centrifuge disabled. S-10 Pest destroyed. K-01 Serf destroyed. Acquired 10 matter. S-10 Pest destroyed. Integration Channel disabled. R-06 Scavenger collects Lgt. Ion Engine. Map ----- +----------------------------------------------------+ | ?????????????????????????????????????????????????? | | ?????????????????????????????????????????????????? | | ?????????????????????????????????????????????????? | | ?????????????????????????????????????????????????? | | ?????????????????????????????????????????????????? | | ?????????????????????????????????????????????????? | | ?????????????????????????????????????????????????? | | ?????????????????????????????????????????????????? | | ?????????????????????????????????????????????????? | | ?????????????????????????????????????????????????? | | ?????????????????????????? ??????????????????????? | | ?????????????????????????? ?? ???????????????????? | | ?????????????????????????? ? ???????????????????? | | ?????????????????????????? ? ???????????????????? | | ?????????????????????????? ? #???????????????????? | | ?????????????????????##?## ? ???????????????????? | | ????????????????????? ???????????????????? | | ?????????????????????? ????????????????????? | | ?????????????????????? ????????????????????? | | ??????????????????##### # # #########????????????? | | ??????????????????# #????????????? | | ??????????????????+ " #???????????* | | ??????????????????# " = ##?????????? | | ??????????????????# "" Y " " #????????k?u | | ??????????????????# " " a "T" #??????????? = | | ??????????????????# "" @ [%[ """ #???????????#% | | ??????????????????# "" *[ #???????????#[ | | ??????????????????# """ = #+######???????????#% | | ??????????????????# """ #??##############= | | ??????????????????# " #####r #??# """ """ #* | | ??????????????????# ????#t #??# T """ """ # | | ??????????????????# ????# #??# """ """ # | | ??????????????????#####?????# #### ! +! | | ????????????????+?########### # # #% | | ??????????????????# # # ## # u########! | | ??????????????????+ # t u ! = | | ??????????????????# """ """ # | | ??????????????????# """ """ # o | | ??????????????????# """ """ / ##############+## | | ??????????????????# # #????? ## | | ??????????????????# # #??? ! # | | ??????????????????# # ## # # # | | ??????????????????########### # ## "T" # | | ????????????????????????????# # """ ## """ # | | ?????????????????????######## # """ ## # | | ?????????????????????# + + """ ########### | | ?????????????????????# # # #?????????? | | ?????????????????????# # # #?????????? | | ????????????#????????# # ########?????????? | | ????????????# ######## * # #????????????????? | +----------------------------------------------------+ Best States ------------- Heat Dissipation 38 Energy Generation 14 Energy Capacity 265 Matter Stores 300 Matter Capacity 300 Sight Range 16 Robot Scan Range 10 Terrain Scan Density 10 Armor Coverage 150 Evasion (%) 50 Recoil Reduction 1 Item Schematics ----------------- Sensor Array | -10/Materials | Hacked Signal Interpreter | -10/Materials | Hacked Robot Schematics ------------------ None Fabricated ------------ Nothing Alien Tech Used ----------------- None Achievements -------------- Quantum Hacking Challenges ------------ None Game ------ Seed KineticTargetExoskeleton Manual? 0 Play Time 00:32:01 Cumulative 18.5 hours Start 2021.08.14 @ 21:38:16 End 2021.08.14 @ 22:09:57 Sessions 1 Manual Loads 0 Difficulty Rogue Special Mode None Game No. 24 Rogue 24 Adventurer 0 Explorer 0 Win Type - Total 0 Types 0/0/0/0/0/0/0/0/0 Lore% 21 Gallery% 24 Achievement% 20 Wizard Run 0 Options --------- ASCII 0 Keyboard 0 Movement Mouse Keybinds 0 Fullscreen 1 Font 18/Terminus Map View 76x50 Tactical HUD 0 Map Filters NONE Filters NONE Steam 1 RUN: 529d202d-87ab-4857-9ad4-a00a19c83fea